[Event "Konyaalti Open-A 2019"]
[Site "Konyaalti"]
[Date "2019.11.22"]
[Round "7.2"]
[White "Ibrahimov, Rasul"]
[Black "Lortkipanidze, Nodar"]
[Result "1-0"]
[ECO "E16"]
[WhiteElo "2518"]
[BlackElo "2377"]
[Annotator "ChessBase"]
[PlyCount "89"]
[EventDate "2019.11.20"]
[EventType "swiss"]
[EventCountry "TUR"]
[SourceTitle "playchess.com"]
[Source "ChessBase"]
[SourceQuality "1"]
[TimeControl "5400+30"]

1. d4 {[%emt 0:00:30]} e6 {[%emt 0:00:30]} 2. Nf3 {[%emt 0:00:30]} b6 {[%emt 0:00:30]} 3. g3 {[%emt 0:00:30]} Bb7 {[%emt 0:00:30]} 4. Bg2 {[%emt 0:00:30]} Nf6 {[%emt 0:06:30]} 5. c4 {[%emt 0:01:30]} g6 {[%emt 0:00:30]} 6. Nc3 {[%emt 0:01:30]} Ne4 {[%emt 0:01:30]} 7. d5 {[%emt 0:00:30]} Nxc3 {[%emt 0:00:30]} 8. Qd4 {[%emt 0:00:30]} f6 {[%emt 0:01:30]} 9. Qxc3 {[%emt 0:02:30]} Qe7 {[%emt 0:01:30]} 10. O-O {[%emt 0:14:30]} Bg7 {[%emt 0:07:30]} 11. Nd4 {[%emt 0:11:30]} c6 {[%emt 0:01:30]} 12. Nb5 {[%emt 0:07:30]} Na6 {[%emt 0:04:30]} 13. Qe3 {[%emt 0:10:30]} exd5 {[%emt 0:06:30]} 14. Nd6+ {[%emt 0:01:30]} Kf8 {[%emt 0:00:00]} 15. Nxb7 {[%emt 0:00:30]} dxc4 {[%emt 0:03:00]} 16. Qf4 {[%emt 0:07:30]} d5 {[%emt 0:00:30]} 17. e4 {[%emt 0:01:30]} d4 {[%emt 0:05:30]} 18. e5 {[%emt 0:02:30]} f5 {[%emt 0:03:30]} 19. Qxd4 {[%emt 0:07:30]} Qxb7 {[%emt 0:04:30]} 20. Qd6+ {[%emt 0:00:30]} Qe7 {[%emt 0:00:30]} 21. Qxc6 {[%emt 0:01:30]} Rb8 {[%emt 0:00:30]} 22. e6 {[%emt 0:05:30]} Nc5 {[%emt 0:04:30]} 23. Bf4 {[%emt 0:04:52]} Rd8 {[%emt 0:02:30]} 24. Rad1 {[%emt 0:01:50]} Nd3 {[%emt 0:06:30]} 25. Qxc4 {[%emt 0:01:37]} Nxf4 {[%emt 0:00:30]} 26. Qxf4 {[%emt 0:02:10]} Bf6 {[%emt 0:06:30]} 27. Rxd8+ {[%emt 0:07:31]} Qxd8 {[%emt 0:00:30]} 28. Rc1 {[%emt 0:00:09]} Bg5 {[%emt 0:00:00]} 29. Qc7 {[%emt 0:00:29]} Qe7 {[%emt 0:00:00]} 30. Qe5 {[%emt 0:01:19]} Bf6 {[%emt 0:00:30]} 31. Qf4 {[%emt 0:00:13]} Bg5 {[%emt 0:00:30]} 32. Rc8+ {[%emt 0:01:31]} Kg7 {[%emt 0:00:30]} 33. Rc7 {[%emt 0:00:15]} Bxf4 {[%emt 0:00:30]} 34. Rxe7+ {[%emt 0:00:09]} Kf6 {[%emt 0:00:00]} 35. Rxa7 {[%emt 0:00:00]} Bb8 {[%emt 0:01:00]} 36. Rb7 {[%emt 0:00:25]} Kxe6 {[%emt 0:00:30]} 37. Rxb6+ {[%emt 0:00:08]} Bd6 {[%emt 0:00:30]} 38. a4 {[%emt 0:01:45]} Rc8 {[%emt 0:00:00]} 39. a5 {[%emt 0:01:15]} Rc1+ {[%emt 0:00:00]} 40. Bf1 {[%emt 0:00:02]} Kd5 {[%emt 0:02:30]} 41. b4 {[%emt 0:00:58]} Be5 {[%emt 0:00:30]} 42. a6 {[%emt 0:01:21]} Bd4 {[%emt 0:00:30]} 43. Rb7 {[%emt 0:00:22]} Rc2 {[%emt 0:02:30]} 44. Rd7+ {[%emt 0:00:22]} Ke4 {[%emt 0:01:30]} 45. Bg2+ 1-0

[Event "Konyaalti Open-A 2019"]
[Site "Konyaalti"]
[Date "2019.11.22"]
[Round "7.3"]
[White "Gokerkan, Cem Kaan"]
[Black "Nigalidze, Gaioz"]
[Result "1/2-1/2"]
[ECO "B30"]
[WhiteElo "2452"]
[BlackElo "2472"]
[Annotator "ChessBase"]
[PlyCount "206"]
[EventDate "2019.11.20"]
[EventType "swiss"]
[EventCountry "TUR"]
[SourceTitle "playchess.com"]
[Source "ChessBase"]
[SourceQuality "1"]
[TimeControl "5400+30"]

1. e4 {[%emt 0:00:30]} c5 {[%emt 0:00:30]} 2. Nf3 {[%emt 0:00:30]} Nc6 {[%emt 0:00:30]} 3. Nc3 {[%emt 0:08:30]} e5 {[%emt 0:00:30]} 4. Bc4 {[%emt 0:03:30]} d6 {[%emt 0:02:30]} 5. d3 {[%emt 0:00:30]} Be7 {[%emt 0:00:30]} 6. a4 {[%emt 0:01:30]} Nf6 {[%emt 0:02:30]} 7. h3 {[%emt 0:01:30]} O-O {[%emt 0:05:30]} 8. O-O {[%emt 0:01:30]} Be6 {[%emt 0:00:30]} 9. Re1 {[%emt 0:00:30]} Na5 {[%emt 0:02:30]} 10. Ba2 {[%emt 0:05:30]} a6 {[%emt 0:03:30]} 11. Bd2 {[%emt 0:03:30]} h6 {[%emt 0:24:30]} 12. Nd5 {[%emt 0:07:30]} Nc6 {[%emt 0:10:30]} 13. a5 {[%emt 0:05:30]} Bxd5 {[%emt 0:02:30]} 14. Bxd5 {[%emt 0:08:30]} Nxd5 {[%emt 0:04:30]} 15. exd5 {[%emt 0:00:30]} Nd4 {[%emt 0:00:30]} 16. Nxd4 {[%emt 0:00:30]} exd4 {[%emt 0:00:30]} 17. Qg4 {[%emt 0:00:30]} Bg5 {[%emt 0:04:30]} 18. f4 {[%emt 0:14:30]} Bf6 {[%emt 0:00:30]} 19. Re2 {[%emt 0:01:30]} Rc8 {[%emt 0:04:30]} 20. b3 {[%emt 0:01:30]} Re8 {[%emt 0:03:30]} 21. Rxe8+ {[%emt 0:01:30]} Qxe8 {[%emt 0:00:30]} 22. Re1 {[%emt 0:00:30]} Qd8 {[%emt 0:00:30]} 23. Re4 {[%emt 0:02:30]} Rc7 {[%emt 0:01:30]} 24. Qe2 {[%emt 0:01:30]} Re7 {[%emt 0:01:30]} 25. g4 {[%emt 0:00:00]} g6 {[%emt 0:03:30]} 26. Kg2 {[%emt 0:02:00]} Kf8 {[%emt 0:00:30]} 27. Kf3 {[%emt 0:00:30]} b5 {[%emt 0:05:18]} 28. axb6 {[%emt 0:02:30]} Qxb6 {[%emt 0:00:20]} 29. h4 {[%emt 0:17:02]} Qb7 {[%emt 0:02:48]} 30. g5 {[%emt 0:01:06]} hxg5 {[%emt 0:01:42]} 31. hxg5 {[%emt 0:01:24]} Bg7 {[%emt 0:01:26]} 32. Rxe7 {[%emt 0:03:51]} Qxe7 {[%emt 0:00:02]} 33. Qxe7+ {[%emt 0:00:00]} Kxe7 {[%emt 0:00:04]} 34. Ke4 {[%emt 0:01:03]} Kd7 {[%emt 0:01:08]} 35. Be1 {[%emt 0:00:19]} Bf8 {[%emt 0:00:54]} 36. f5 {[%emt 0:01:53]} Be7 {[%emt 0:00:17]} 37. f6 {[%emt 0:01:01]} Bd8 {[%emt 0:00:01]} 38. Kf3 {[%emt 0:01:03]} Kc8 {[%emt 0:06:34]} 39. Ke2 {[%emt 0:00:01]} Kb7 {[%emt 0:00:16]} 40. Kd1 {[%emt 0:00:51]} Kb6 {[%emt 0:00:08]} 41. Kc1 {[%emt 0:00:02]} Kb5 {[%emt 0:00:21]} 42. Kb2 {[%emt 0:00:12]} Ba5 {[%emt 0:00:43]} 43. c4+ {[%emt 0:01:37]} dxc3+ {[%emt 0:00:35]} 44. Kc2 {[%emt 0:00:01]} Bc7 {[%emt 0:02:36]} 45. Bg3 {[%emt 0:00:01]} Kb4 {[%emt 0:01:29]} 46. Bh2 {[%emt 0:00:25]} a5 {[%emt 0:01:39]} 47. Bg3 {[%emt 0:00:11]} a4 {[%emt 0:00:59]} 48. bxa4 {[%emt 0:00:04]} c4 {[%emt 0:00:41]} 49. Be1 {[%emt 0:00:00]} cxd3+ {[%emt 0:00:34]} 50. Kxd3 {[%emt 0:00:24]} Kxa4 {[%emt 0:00:30]} 51. Bxc3 {[%emt 0:00:33]} Ba5 {[%emt 0:00:30]} 52. Bd4 {[%emt 0:00:34]} Kb5 {[%emt 0:00:46]} 53. Be3 {[%emt 0:00:13]} Bb6 {[%emt 0:00:25]} 54. Bf4 {[%emt 0:00:13]} Bc5 {[%emt 0:00:38]} 55. Kc3 {[%emt 0:00:53]} Bb4+ {[%emt 0:00:24]} 56. Kd4 {[%emt 0:00:08]} Ba3 {[%emt 0:00:27]} 57. Bg3 {[%emt 0:01:37]} Bb2+ {[%emt 0:00:27]} 58. Ke4 {[%emt 0:00:15]} Kc5 {[%emt 0:00:32]} 59. Bf4 {[%emt 0:00:22]} Ba3 {[%emt 0:00:23]} 60. Be3+ {[%emt 0:00:37]} Kc4 {[%emt 0:00:06]} 61. Bd2 {[%emt 0:00:26]} Bc5 {[%emt 0:00:20]} 62. Be1 {[%emt 0:00:31]} Bb4 {[%emt 0:00:40]} 63. Bg3 {[%emt 0:00:36]} Bc5 {[%emt 0:00:32]} 64. Be1 {[%emt 0:00:07]} Bb4 {[%emt 0:00:03]} 65. Bg3 {[%emt 0:00:00]} Ba3 {[%emt 0:01:00]} 66. Bh2 {[%emt 0:01:38]} Kc3 {[%emt 0:00:45]} 67. Bf4 {[%emt 0:00:01]} Bc5 {[%emt 0:00:11]} 68. Bc1 {[%emt 0:01:25]} Bb4 {[%emt 0:00:51]} 69. Bf4 {[%emt 0:00:04]} Ba3 {[%emt 0:00:11]} 70. Be3 {[%emt 0:00:41]} Kc2 {[%emt 0:00:19]} 71. Bf4 {[%emt 0:00:01]} Bc5 {[%emt 0:00:13]} 72. Bg3 {[%emt 0:01:01]} Kd2 {[%emt 0:00:07]} 73. Bf4+ {[%emt 0:00:10]} Ke2 {[%emt 0:00:10]} 74. Bg3 {[%emt 0:00:02]} Ba3 {[%emt 0:00:50]} 75. Bh4 {[%emt 0:02:22]} Bc5 {[%emt 0:01:21]} 76. Bg3 {[%emt 0:00:08]} Ba3 {[%emt 0:00:30]} 77. Bh4 {[%emt 0:00:04]} Bc1 {[%emt 0:01:17]} 78. Bg3 {[%emt 0:00:01]} Bxg5 {[%emt 0:00:11]} 79. Bxd6 {[%emt 0:00:01]} Bxf6 {[%emt 0:00:00]} 80. Bf4 {[%emt 0:03:03]} Bd8 {[%emt 0:00:10]} 81. d6 {[%emt 0:00:11]} f5+ {[%emt 0:00:16]} 82. Ke5 {[%emt 0:00:25]} Kf3 {[%emt 0:00:05]} 83. Bh6 {[%emt 0:00:56]} Kg4 {[%emt 0:00:06]} 84. d7 {[%emt 0:00:27]} g5 {[%emt 0:00:25]} 85. Bg7 {[%emt 0:00:25]} f4 {[%emt 0:01:39]} 86. Bf6 {[%emt 0:00:07]} Bc7+ {[%emt 0:00:22]} 87. Ke6 {[%emt 0:01:00]} f3 {[%emt 0:00:22]} 88. Be5 {[%emt 0:00:01]} Bd8 {[%emt 0:00:38]} 89. Bd4 {[%emt 0:00:15]} Kh3 {[%emt 0:01:30]} 90. Bf6 {[%emt 0:00:11]} f2 {[%emt 0:00:28]} 91. Bxd8 {[%emt 0:00:05]} f1=Q {[%emt 0:00:06]} 92. Be7 {[%emt 0:01:33]} Qc4+ {[%emt 0:00:47]} 93. Kd6 {[%emt 0:00:40]} Qb4+ {[%emt 0:00:32]} 94. Ke6 {[%emt 0:00:02]} Qb3+ {[%emt 0:00:14]} 95. Kd6 {[%emt 0:01:15]} Qb6+ {[%emt 0:00:46]} 96. Kd5 {[%emt 0:00:02]} Qb7+ {[%emt 0:00:37]} 97. Kd6 {[%emt 0:00:06]} Qb8+ {[%emt 0:00:30]} 98. Kc6 {[%emt 0:00:30]} Qa8+ {[%emt 0:00:23]} 99. Kd6 {[%emt 0:00:09]} Qa3+ {[%emt 0:00:25]} 100. Ke6 {[%emt 0:00:04]} Qb3+ {[%emt 0:00:40]} 101. Kd6 {[%emt 0:00:07]} Qb4+ {[%emt 0:00:34]} 102. Ke6 {[%emt 0:00:05]} Qe4+ {[%emt 0:00:29]} 103. Kd6 {[%emt 0:00:09]} Qb4+ {[%emt 0:00:14]} 1/2-1/2

[Event "Konyaalti Open-A 2019"]
[Site "Konyaalti"]
[Date "2019.11.22"]
[Round "7.4"]
[White "Moiseenko, Vadim"]
[Black "Kamer, Kayra"]
[Result "1-0"]
[ECO "A41"]
[WhiteElo "2532"]
[BlackElo "2329"]
[Annotator "ChessBase"]
[PlyCount "77"]
[EventDate "2019.11.20"]
[EventType "swiss"]
[EventCountry "TUR"]
[SourceTitle "playchess.com"]
[Source "ChessBase"]
[SourceQuality "1"]
[TimeControl "5400+30"]

1. c4 {[%emt 0:00:30]} g6 {[%emt 0:11:30]} 2. Nc3 {[%emt 0:00:00]} Bg7 {[%emt 0:00:00]} 3. d4 {[%emt 0:00:00]} d6 {[%emt 0:00:00]} 4. f4 {[%emt 0:02:30]} c5 {[%emt 0:11:30]} 5. e3 {[%emt 0:00:00]} cxd4 {[%emt 0:01:30]} 6. exd4 {[%emt 0:00:00]} Nc6 {[%emt 0:00:00]} 7. Nge2 {[%emt 0:04:30]} Bg4 {[%emt 0:02:00]} 8. Be3 {[%emt 0:00:30]} Nh6 {[%emt 0:00:30]} 9. d5 {[%emt 0:03:30]} Nf5 {[%emt 0:01:30]} 10. Bf2 {[%emt 0:00:30]} Ncd4 {[%emt 0:01:30]} 11. Qa4+ {[%emt 0:00:00]} Kf8 {[%emt 0:01:30]} 12. Nxd4 {[%emt 0:07:00]} Nxd4 {[%emt 0:00:30]} 13. Bd3 {[%emt 0:00:30]} e5 {[%emt 0:11:30]} 14. fxe5 {[%emt 0:17:30]} Bxe5 {[%emt 0:00:30]} 15. O-O {[%emt 0:00:30]} Qg5 {[%emt 0:03:30]} 16. Ne4 {[%emt 0:03:30]} Qh6 {[%emt 0:01:30]} 17. Ng3 {[%emt 0:04:30]} Be2 {[%emt 0:00:30]} 18. Rfe1 {[%emt 0:04:30]} Bxg3 {[%emt 0:11:30]} 19. hxg3 {[%emt 0:10:30]} Nf3+ {[%emt 0:00:30]} 20. gxf3 {[%emt 0:00:30]} Bxf3 {[%emt 0:00:30]} 21. Bd4 {[%emt 0:00:00]} b5 {[%emt 0:00:30]} 22. Qxb5 {[%emt 0:01:00]} Qd2 {[%emt 0:02:30]} 23. Bf2 {[%emt 0:01:30]} Qh6 {[%emt 0:01:30]} 24. Bc5 {[%emt 0:07:30]} dxc5 {[%emt 0:19:31]} 25. Qxc5+ {[%emt 0:00:30]} Kg8 {[%emt 0:00:02]} 26. Bf1 {[%emt 0:07:30]} Qh1+ {[%emt 0:01:33]} 27. Kf2 {[%emt 0:00:00]} Be4 {[%emt 0:00:02]} 28. Re3 {[%emt 0:01:00]} Qh2+ {[%emt 0:01:08]} 29. Ke1 {[%emt 0:00:00]} Qxb2 {[%emt 0:00:22]} 30. Rd1 {[%emt 0:00:00]} Bc2 {[%emt 0:07:06]} 31. Qd4 {[%emt 0:00:30]} Qb4+ {[%emt 0:00:42]} 32. Rd2 {[%emt 0:00:30]} h5 {[%emt 0:00:01]} 33. c5 {[%emt 0:01:30]} Qb1+ {[%emt 0:00:22]} 34. Kf2 {[%emt 0:00:30]} h4 {[%emt 0:00:00]} 35. g4 {[%emt 0:03:30]} h3 {[%emt 0:00:26]} 36. Rde2 {[%emt 0:01:30]} Qb8 {[%emt 0:01:27]} 37. Kg1 {[%emt 0:01:15]} Qb5 {[%emt 0:03:47]} 38. Rxc2 {[%emt 0:01:28]} Qb1 {[%emt 0:00:02]} 39. Rh2 {[%emt 0:00:44]} 1-0

[Event "Konyaalti Open-A 2019"]
[Site "Konyaalti"]
[Date "2019.11.22"]
[Round "7.5"]
[White "Haznedaroglu, Kivanc"]
[Black "Yurtseven, Melih"]
[Result "1/2-1/2"]
[ECO "C00"]
[WhiteElo "2461"]
[BlackElo "2388"]
[Annotator "ChessBase"]
[PlyCount "71"]
[EventDate "2019.11.20"]
[EventType "swiss"]
[EventCountry "TUR"]
[SourceTitle "playchess.com"]
[Source "ChessBase"]
[SourceQuality "1"]
[TimeControl "5400+30"]

1. e4 {[%emt 0:00:30]} e6 {[%emt 0:06:30]} 2. Qe2 {[%emt 0:10:30]} Be7 {[%emt 0:06:30]} 3. g3 {[%emt 0:00:30]} d5 {[%emt 0:00:30]} 4. d3 {[%emt 0:00:30]} Nf6 {[%emt 0:00:30]} 5. Bg2 {[%emt 0:00:30]} c5 {[%emt 0:00:00]} 6. Nf3 {[%emt 0:00:30]} Nc6 {[%emt 0:01:00]} 7. O-O {[%emt 0:00:30]} O-O {[%emt 0:00:30]} 8. Nbd2 {[%emt 0:00:30]} Qc7 {[%emt 0:03:30]} 9. Re1 {[%emt 0:01:30]} b5 {[%emt 0:01:30]} 10. e5 {[%emt 0:00:30]} Nd7 {[%emt 0:00:30]} 11. Nf1 {[%emt 0:00:30]} Bb7 {[%emt 0:00:30]} 12. h4 {[%emt 0:00:30]} Rfc8 {[%emt 0:00:00]} 13. c3 {[%emt 0:02:30]} b4 {[%emt 0:07:00]} 14. N1h2 {[%emt 0:07:30]} bxc3 {[%emt 0:05:30]} 15. bxc3 {[%emt 0:01:30]} Rab8 {[%emt 0:00:30]} 16. Bf4 {[%emt 0:10:30]} Qa5 {[%emt 0:07:30]} 17. Rac1 {[%emt 0:02:30]} Ba6 {[%emt 0:03:30]} 18. Ng5 {[%emt 0:03:30]} Bxg5 {[%emt 0:04:30]} 19. hxg5 {[%emt 0:01:30]} Ne7 {[%emt 0:03:30]} 20. Ng4 {[%emt 0:00:30]} Ng6 {[%emt 0:12:30]} 21. Bxd5 {[%emt 0:26:30]} Nxf4 {[%emt 0:01:30]} 22. gxf4 {[%emt 0:00:00]} exd5 {[%emt 0:00:30]} 23. e6 {[%emt 0:00:00]} Re8 {[%emt 0:11:30]} 24. Nh6+ {[%emt 0:00:30]} gxh6 {[%emt 0:00:30]} 25. exf7+ {[%emt 0:00:00]} Kxf7 {[%emt 0:00:00]} 26. Qh5+ {[%emt 0:00:00]} Kf8 {[%emt 0:04:22]} 27. Qxh6+ {[%emt 0:00:00]} Kg8 {[%emt 0:00:31]} 28. g6 {[%emt 0:01:00]} Nf8 {[%emt 0:09:30]} 29. gxh7+ {[%emt 0:05:30]} Nxh7 {[%emt 0:01:06]} 30. Qg6+ {[%emt 0:00:30]} Kf8 {[%emt 0:00:00]} 31. Qf5+ {[%emt 0:15:36]} Kg7 {[%emt 0:02:09]} 32. Qd7+ {[%emt 0:00:46]} Kf8 {[%emt 0:00:04]} 33. Qd6+ {[%emt 0:03:21]} Kg8 {[%emt 0:04:04]} 34. Qg6+ {[%emt 0:03:52]} Kf8 {[%emt 0:00:01]} 35. Qh6+ {[%emt 0:02:12]} Kg8 {[%emt 0:00:13]} 36. Qg6+ {[%emt 0:00:01]} 1/2-1/2

[Event "Konyaalti Open-A 2019"]
[Site "Konyaalti"]
[Date "2019.11.22"]
[Round "7.6"]
[White "Gadimbayli, Abdulla"]
[Black "Kiremitciyan, Ari"]
[Result "1/2-1/2"]
[ECO "B27"]
[WhiteElo "2447"]
[BlackElo "2264"]
[Annotator "ChessBase"]
[PlyCount "44"]
[EventDate "2019.11.20"]
[EventType "swiss"]
[EventCountry "TUR"]
[SourceTitle "playchess.com"]
[Source "ChessBase"]
[SourceQuality "1"]
[TimeControl "5400+30"]

1. e4 {[%emt 0:14:30]} c5 {[%emt 0:00:30]} 2. Nf3 {[%emt 0:00:00]} g6 {[%emt 0:00:00]} 3. d4 {[%emt 0:03:00]} cxd4 {[%emt 0:00:00]} 4. Qxd4 {[%emt 0:00:30]} Nf6 {[%emt 0:00:30]} 5. Nc3 {[%emt 0:00:00]} Nc6 {[%emt 0:00:00]} 6. Qa4 {[%emt 0:00:00]} d6 {[%emt 0:00:00]} 7. e5 {[%emt 0:00:00]} dxe5 {[%emt 0:00:00]} 8. Nxe5 {[%emt 0:00:00]} Bg7 {[%emt 0:01:00]} 9. Bb5 {[%emt 0:05:30]} O-O {[%emt 0:00:00]} 10. Nxc6 {[%emt 0:04:30]} bxc6 {[%emt 0:00:00]} 11. Bxc6 {[%emt 0:00:00]} Bd7 {[%emt 0:00:30]} 12. O-O {[%emt 0:01:00]} Rc8 {[%emt 0:00:30]} 13. Bxd7 {[%emt 0:04:30]} Qxd7 {[%emt 0:00:00]} 14. Qxd7 {[%emt 0:05:30]} Nxd7 {[%emt 0:00:00]} 15. Be3 {[%emt 0:00:30]} Nb6 {[%emt 0:12:30]} 16. a4 {[%emt 0:11:30]} Bxc3 {[%emt 0:06:30]} 17. bxc3 {[%emt 0:00:30]} Rc7 {[%emt 0:10:30]} 18. Bxb6 {[%emt 0:14:30]} axb6 {[%emt 0:00:30]} 19. Rfb1 {[%emt 0:00:30]} Rc6 {[%emt 0:02:30]} 20. g3 {[%emt 0:06:30]} Rd8 {[%emt 0:02:30]} 21. Rd1 {[%emt 0:00:30]} Rxd1+ {[%emt 0:00:30]} 22. Rxd1 {[%emt 0:00:00]} Rxc3 {[%emt 0:00:30]} 1/2-1/2

[Event "Konyaalti Open-A 2019"]
[Site "Konyaalti"]
[Date "2019.11.22"]
[Round "7.7"]
[White "Garayev, Kanan"]
[Black "Ozen, Deniz"]
[Result "1/2-1/2"]
[ECO "D27"]
[WhiteElo "2338"]
[BlackElo "2422"]
[Annotator "ChessBase"]
[PlyCount "91"]
[EventDate "2019.11.20"]
[EventType "swiss"]
[EventCountry "TUR"]
[SourceTitle "playchess.com"]
[Source "ChessBase"]
[SourceQuality "1"]
[TimeControl "5400+30"]

1. d4 {[%emt 0:00:30]} d5 {[%emt 0:00:30]} 2. c4 {[%emt 0:00:30]} dxc4 {[%emt 0:08:30]} 3. Nf3 {[%emt 0:01:30]} Nf6 {[%emt 0:00:00]} 4. e3 {[%emt 0:00:00]} e6 {[%emt 0:00:00]} 5. Bxc4 {[%emt 0:00:00]} c5 {[%emt 0:00:30]} 6. O-O {[%emt 0:00:30]} Nc6 {[%emt 0:02:30]} 7. Nc3 {[%emt 0:00:30]} a6 {[%emt 0:01:30]} 8. a4 {[%emt 0:05:30]} Be7 {[%emt 0:02:30]} 9. Qe2 {[%emt 0:06:30]} cxd4 {[%emt 0:00:00]} 10. Rd1 {[%emt 0:00:30]} e5 {[%emt 0:01:00]} 11. exd4 {[%emt 0:00:30]} exd4 {[%emt 0:01:30]} 12. Nxd4 {[%emt 0:01:30]} Nxd4 {[%emt 0:03:30]} 13. Qe5 {[%emt 0:04:30]} Qd6 {[%emt 0:00:30]} 14. Qxd6 {[%emt 0:02:30]} Bxd6 {[%emt 0:00:30]} 15. Rxd4 {[%emt 0:01:30]} Bc5 {[%emt 0:00:30]} 16. Rd1 {[%emt 0:01:30]} O-O {[%emt 0:00:30]} 17. h3 {[%emt 0:00:30]} Be6 {[%emt 0:01:30]} 18. Bxe6 {[%emt 0:00:30]} fxe6 {[%emt 0:00:30]} 19. Be3 {[%emt 0:02:30]} Bxe3 {[%emt 0:00:30]} 20. fxe3 {[%emt 0:00:30]} Rfd8 {[%emt 0:00:00]} 21. Kf2 {[%emt 0:00:30]} Kf7 {[%emt 0:06:00]} 22. Ke2 {[%emt 0:02:30]} Ke7 {[%emt 0:00:30]} 23. Rac1 {[%emt 0:01:30]} Rac8 {[%emt 0:00:30]} 24. Rd4 {[%emt 0:03:30]} e5 {[%emt 0:04:30]} 25. Rxd8 {[%emt 0:01:30]} Kxd8 {[%emt 0:00:00]} 26. g4 {[%emt 0:01:30]} h6 {[%emt 0:00:00]} 27. Rd1+ {[%emt 0:01:30]} Ke7 {[%emt 0:00:30]} 28. Nd5+ {[%emt 0:01:30]} Nxd5 {[%emt 0:00:30]} 29. Rxd5 {[%emt 0:00:30]} Ke6 {[%emt 0:00:00]} 30. Rd2 {[%emt 0:00:30]} Rc4 {[%emt 0:02:00]} 31. b3 {[%emt 0:00:30]} Rc3 {[%emt 0:00:30]} 32. Rd3 {[%emt 0:01:30]} Rc2+ {[%emt 0:00:30]} 33. Rd2 {[%emt 0:00:30]} Rc3 {[%emt 0:00:00]} 34. Rd3 {[%emt 0:00:30]} Rc2+ {[%emt 0:00:00]} 35. Rd2 {[%emt 0:00:30]} Rxd2+ {[%emt 0:00:30]} 36. Kxd2 {[%emt 0:00:00]} Kd5 {[%emt 0:00:30]} 37. Kd3 {[%emt 0:00:00]} a5 {[%emt 0:00:30]} 38. e4+ {[%emt 0:03:30]} Kc5 {[%emt 0:00:30]} 39. Kc3 {[%emt 0:00:30]} g5 {[%emt 0:00:30]} 40. Kd3 {[%emt 0:00:30]} Kb4 {[%emt 0:00:30]} 41. Kc2 {[%emt 0:00:00]} b5 {[%emt 0:00:30]} 42. axb5 {[%emt 0:00:00]} Kxb5 {[%emt 0:00:00]} 43. Kc3 {[%emt 0:00:30]} Kc5 {[%emt 0:00:00]} 44. Kd3 {[%emt 0:00:00]} Kb4 {[%emt 0:00:00]} 45. Kc2 {[%emt 0:00:00]} Kb5 {[%emt 0:00:00]} 46. Kc3 {[%emt 0:00:30]} 1/2-1/2